[Event "2026 Biel Blitz Open"]
[Site "Biel, CH"]
[Date "2026.07.19"]
[Round "7"]
[White "Langner, Robin"]
[Black "Alexakis, Dimitris"]
[Result "0-1"]
[Board "12"]
[TimeControl "180+2"]
[WhiteFideId "34606190"]
[BlackFideId "4277023"]
[WhiteElo "2059"]
[BlackElo "2459"]
[BlackTitle "GM"]
[WhiteClock "0:00:59"]
[BlackClock "0:01:45"]
[Variant "Standard"]
[EndDate "2026.07.19"]
[EndTime "13:54:50"]

1. d4 {[%clk 0:03:03]}  Nf6 {[%clk 0:03:03]} 2. c4 {[%clk 0:03:04]}  e6 {[%clk 0:03:04]} 3. g3 {[%clk 0:03:03]}  Bb4+ {[%clk 0:03:04]}
4. Nd2 {[%clk 0:03:04]}  d5 {[%clk 0:02:53]} 5. Bg2 {[%clk 0:03:05]}  O-O {[%clk 0:02:50]} 6. Ngf3 {[%clk 0:03:05]}  b6 {[%clk 0:02:50]}
7. a3 {[%clk 0:02:48]}  Be7 {[%clk 0:02:47]} 8. cxd5 {[%clk 0:02:48]}  exd5 {[%clk 0:02:48]} 9. Ne5 {[%clk 0:02:48]}  c5 {[%clk 0:02:48]}
10. O-O {[%clk 0:02:24]}  Bb7 {[%clk 0:02:48]} 11. Ndc4 {[%clk 0:02:24]}  Re8 {[%clk 0:02:40]} 12. Bg5 {[%clk 0:02:22]}  h6 {[%clk 0:02:32]}
13. Bxf6 {[%clk 0:02:23]}  Bxf6 {[%clk 0:02:32]} 14. f4 {[%clk 0:02:13]}  Qe7 {[%clk 0:02:24]} 15. Ne3 {[%clk 0:02:11]}  Rd8 {[%clk 0:02:17]}
16. Rc1 {[%clk 0:01:50]}  Nc6 {[%clk 0:02:03]} 17. Nf5 {[%clk 0:01:45]}  Qf8 {[%clk 0:01:57]} 18. Nxc6 {[%clk 0:01:37]}  Bxc6 {[%clk 0:01:57]}
19. dxc5 {[%clk 0:01:21]}  Bxb2 {[%clk 0:01:51]} 20. Rc2 {[%clk 0:01:18]}  Ba4 {[%clk 0:01:46]} 21. Qb1 {[%clk 0:01:03]}  Bxc2 {[%clk 0:01:45]}
22. Qxb2 {[%clk 0:00:59]} 0-1

[Event "2026 Biel Blitz Open"]
[Site "Biel, CH"]
[Date "2026.07.19"]
[Round "7"]
[White "Haimovich, Tal"]
[Black "Stefan, Iulia-Cristiana"]
[Result "1-0"]
[Board "13"]
[TimeControl "180+2"]
[WhiteFideId "2801698"]
[BlackFideId "1273876"]
[WhiteElo "2347"]
[BlackElo "2050"]
[WhiteTitle "IM"]
[BlackTitle "WFM"]
[WhiteClock "0:00:05"]
[BlackClock "0:00:24"]
[Variant "Standard"]
[EndDate "2026.07.19"]
[EndTime "14:07:31"]

1. Nf3 {[%clk 0:03:02]}  d5 {[%clk 0:03:04]} 2. b3 {[%clk 0:03:03]}  Nf6 {[%clk 0:03:03]} 3. Bb2 {[%clk 0:03:04]}  e6 {[%clk 0:03:04]}
4. e3 {[%clk 0:03:05]}  Be7 {[%clk 0:03:02]} 5. c4 {[%clk 0:03:04]}  O-O {[%clk 0:03:03]} 6. Be2 {[%clk 0:03:05]}  c5 {[%clk 0:03:04]}
7. O-O {[%clk 0:03:04]}  Nc6 {[%clk 0:03:04]} 8. cxd5 {[%clk 0:03:03]}  Nxd5 {[%clk 0:02:56]} 9. Nc3 {[%clk 0:03:03]}  Bf6 {[%clk 0:02:51]}
10. Rc1 {[%clk 0:03:03]}  b6 {[%clk 0:02:45]} 11. Qc2 {[%clk 0:02:39]}  Ndb4 {[%clk 0:02:08]} 12. Qb1 {[%clk 0:02:38]}  Bb7 {[%clk 0:02:04]}
13. Rfd1 {[%clk 0:02:35]}  Qe7 {[%clk 0:01:59]} 14. a3 {[%clk 0:02:31]}  Na6 {[%clk 0:01:51]} 15. Nb5 {[%clk 0:02:05]}  Bxb2 {[%clk 0:01:41]}
16. Qxb2 {[%clk 0:02:05]}  Rac8 {[%clk 0:01:32]} 17. d4 {[%clk 0:01:48]}  cxd4 {[%clk 0:01:29]} 18. exd4 {[%clk 0:01:47]}  Rfd8 {[%clk 0:00:45]}
19. b4 {[%clk 0:01:47]}  Nab8 {[%clk 0:00:41]} 20. Bf1 {[%clk 0:01:29]}  a6 {[%clk 0:00:30]} 21. Nc3 {[%clk 0:01:29]}  Nd7 {[%clk 0:00:24]}
22. d5 {[%clk 0:01:26]}  exd5 {[%clk 0:00:18]} 23. Nxd5 {[%clk 0:01:25]}  Qf8 {[%clk 0:00:19]} 24. h3 {[%clk 0:01:04]}  b5 {[%clk 0:00:19]}
25. Bd3 {[%clk 0:00:43]}  Ndb8 {[%clk 0:00:09]} 26. Be4 {[%clk 0:00:39]}  Ne7 {[%clk 0:00:06]} 27. Nf6+ {[%clk 0:00:30]}  gxf6 {[%clk 0:00:07]}
28. Bxb7 {[%clk 0:00:31]}  Rxc1 {[%clk 0:00:08]} 29. Rxc1 {[%clk 0:00:32]}  Nd5 {[%clk 0:00:04]} 30. Bxd5 {[%clk 0:00:31]}  Rxd5 {[%clk 0:00:05]}
31. Qxf6 {[%clk 0:00:31]}  Rd6 {[%clk 0:00:06]} 32. Qf4 {[%clk 0:00:28]}  Rc6 {[%clk 0:00:04]} 33. Rd1 {[%clk 0:00:27]}  Rc8 {[%clk 0:00:04]}
34. Qg4+ {[%clk 0:00:26]}  Kh8 {[%clk 0:00:05]} 35. Ne5 {[%clk 0:00:26]}  Nc6 {[%clk 0:00:05]} 36. Nxf7+ {[%clk 0:00:24]} 1-0

[Event "2026 Biel Blitz Open"]
[Site "Biel, CH"]
[Date "2026.07.19"]
[Round "7"]
[White "Xu, Chang(CQ)"]
[Black "Tureshbayev, Anuar"]
[Result "0-1"]
[Board "14"]
[TimeControl "180+2"]
[WhiteFideId "8641757"]
[BlackFideId "651081709"]
[WhiteElo "2049"]
[BlackElo "2328"]
[BlackTitle "FM"]
[WhiteClock "0:00:10"]
[BlackClock "0:00:16"]
[Variant "Standard"]
[EndDate "2026.07.19"]
[EndTime "14:00:48"]

1. e4 {[%clk 0:03:03]}  c6 {[%clk 0:03:02]} 2. d4 {[%clk 0:03:03]}  d5 {[%clk 0:03:03]} 3. e5 {[%clk 0:03:04]}  c5 {[%clk 0:02:58]}
4. Nf3 {[%clk 0:03:04]}  cxd4 {[%clk 0:02:55]} 5. Nxd4 {[%clk 0:03:04]}  Nc6 {[%clk 0:02:54]} 6. Nxc6 {[%clk 0:03:03]}  bxc6 {[%clk 0:02:55]}
7. Bd3 {[%clk 0:03:04]}  e6 {[%clk 0:02:34]} 8. Nd2 {[%clk 0:03:03]}  Bc5 {[%clk 0:02:15]} 9. Nf3 {[%clk 0:02:58]}  Ne7 {[%clk 0:02:16]}
10. O-O {[%clk 0:02:55]}  Ng6 {[%clk 0:02:12]} 11. Qe2 {[%clk 0:02:50]}  O-O {[%clk 0:02:08]} 12. c4 {[%clk 0:02:34]}  Ba6 {[%clk 0:01:57]}
13. b3 {[%clk 0:02:27]}  Rb8 {[%clk 0:01:45]} 14. Bg5 {[%clk 0:02:17]}  Be7 {[%clk 0:01:24]} 15. Bd2 {[%clk 0:02:00]}  Qd7 {[%clk 0:00:49]}
16. Rfe1 {[%clk 0:01:57]}  Rfd8 {[%clk 0:00:49]} 17. Rad1 {[%clk 0:01:53]}  dxc4 {[%clk 0:00:38]} 18. Bxc4 {[%clk 0:01:51]}  Bxc4 {[%clk 0:00:39]}
19. Qxc4 {[%clk 0:01:49]}  Qd5 {[%clk 0:00:40]} 20. Qc2 {[%clk 0:01:47]}  c5 {[%clk 0:00:30]} 21. Ba5 {[%clk 0:01:45]}  Qc6 {[%clk 0:00:28]}
22. Bxd8 {[%clk 0:01:44]}  Bxd8 {[%clk 0:00:29]} 23. Qc4 {[%clk 0:01:41]}  Bc7 {[%clk 0:00:28]} 24. Rc1 {[%clk 0:01:40]}  Bb6 {[%clk 0:00:24]}
25. b4 {[%clk 0:01:38]}  Rc8 {[%clk 0:00:13]} 26. h4 {[%clk 0:01:12]}  Ne7 {[%clk 0:00:12]} 27. Qe4 {[%clk 0:01:03]}  Nd5 {[%clk 0:00:10]}
28. bxc5 {[%clk 0:01:10]}  Bxc5 {[%clk 0:00:11]} 29. Ng5 {[%clk 0:01:06]}  g6 {[%clk 0:00:12]} 30. Nf3 {[%clk 0:01:01]}  Qb6 {[%clk 0:00:12]}
31. Rc2 {[%clk 0:00:55]}  Nb4 {[%clk 0:00:05]} 32. Rce2 {[%clk 0:00:55]}  Rd8 {[%clk 0:00:06]} 33. Rb1 {[%clk 0:00:51]}  Qa5 {[%clk 0:00:04]}
34. Qc4 {[%clk 0:00:50]}  Rc8 {[%clk 0:00:06]} 35. Qf4 {[%clk 0:00:46]}  Nd3 {[%clk 0:00:05]} 36. Qf6 {[%clk 0:00:43]}  Nxf2 {[%clk 0:00:03]}
37. Rxf2 {[%clk 0:00:27]}  Bxf2+ {[%clk 0:00:04]} 38. Kh2 {[%clk 0:00:27]}  Qd8 {[%clk 0:00:01]} 39. Qf4 {[%clk 0:00:23]}  Qd5 {[%clk 0:00:05]}
40. Ng5 {[%clk 0:00:22]}  Rf8 {[%clk 0:00:04]} 41. Qxf2 {[%clk 0:00:22]}  Qxe5+ {[%clk 0:00:05]} 42. Qg3 {[%clk 0:00:23]}  Qf5 {[%clk 0:00:06]}
43. Rb7 {[%clk 0:00:22]}  h6 {[%clk 0:00:06]} 44. Nf3 {[%clk 0:00:23]}  Qa5 {[%clk 0:00:06]} 45. Qc7 {[%clk 0:00:22]}  Qxa2 {[%clk 0:00:06]}
46. Rxa7 {[%clk 0:00:24]}  Qf2 {[%clk 0:00:05]} 47. Rb7 {[%clk 0:00:21]}  Qe3 {[%clk 0:00:05]} 48. Rb8 {[%clk 0:00:22]}  Rxb8 {[%clk 0:00:06]}
49. Qxb8+ {[%clk 0:00:23]}  Kh7 {[%clk 0:00:07]} 50. Qg3 {[%clk 0:00:23]}  Qb6 {[%clk 0:00:06]} 51. Qf4 {[%clk 0:00:24]}  Qb7 {[%clk 0:00:07]}
52. Ne5 {[%clk 0:00:24]}  Kg7 {[%clk 0:00:08]} 53. Nf3 {[%clk 0:00:22]}  f6 {[%clk 0:00:09]} 54. Qd6 {[%clk 0:00:23]}  e5 {[%clk 0:00:10]}
55. Qe6 {[%clk 0:00:22]}  Qc7 {[%clk 0:00:11]} 56. Qg4 {[%clk 0:00:21]}  e4+ {[%clk 0:00:12]} 57. Kg1 {[%clk 0:00:15]}  exf3 {[%clk 0:00:12]}
58. gxf3 {[%clk 0:00:16]}  Qc5+ {[%clk 0:00:12]} 59. Kf1 {[%clk 0:00:16]}  Qb5+ {[%clk 0:00:13]} 60. Kg1 {[%clk 0:00:17]}  Qc5+ {[%clk 0:00:15]}
61. Kf1 {[%clk 0:00:18]}  h5 {[%clk 0:00:14]} 62. Qd7+ {[%clk 0:00:13]}  Kh6 {[%clk 0:00:12]} 63. Qd2+ {[%clk 0:00:11]}  Kg7 {[%clk 0:00:14]}
64. Qd7+ {[%clk 0:00:12]}  Kh6 {[%clk 0:00:15]} 65. Qd2+ {[%clk 0:00:13]}  g5 {[%clk 0:00:17]} 66. hxg5+ {[%clk 0:00:13]}  Qxg5 {[%clk 0:00:16]}
67. Qd8 {[%clk 0:00:12]}  Qb5+ {[%clk 0:00:15]} 68. Kf2 {[%clk 0:00:12]}  Qc5+ {[%clk 0:00:17]} 69. Kg2 {[%clk 0:00:13]}  Qc2+ {[%clk 0:00:17]}
70. Kg3 {[%clk 0:00:12]}  Qg6+ {[%clk 0:00:18]} 71. Kf2 {[%clk 0:00:14]}  h4 {[%clk 0:00:15]} 72. Qh8+ {[%clk 0:00:13]}  Kg5 {[%clk 0:00:16]}
73. Ke3 {[%clk 0:00:12]}  f5 {[%clk 0:00:13]} 74. Qd8+ {[%clk 0:00:09]}  Kh5 {[%clk 0:00:14]} 75. Qh8+ {[%clk 0:00:10]}  Qh6+ {[%clk 0:00:16]}
76. Kd4 {[%clk 0:00:02]} 0-1

[Event "2026 Biel Blitz Open"]
[Site "Biel, CH"]
[Date "2026.07.19"]
[Round "7"]
[White "Omar, Noaman"]
[Black "Stefan, Romulus-Cristian"]
[Result "0-1"]
[Board "15"]
[TimeControl "180+2"]
[WhiteFideId "9300244"]
[BlackFideId "1232835"]
[WhiteElo "2274"]
[BlackElo "2048"]
[WhiteTitle "IM"]
[BlackTitle "CM"]
[WhiteClock "0:00:04"]
[BlackClock "0:00:33"]
[Variant "Standard"]
[EndDate "2026.07.19"]
[EndTime "13:57:58"]

1. d4 {[%clk 0:03:03]}  d5 {[%clk 0:03:04]} 2. c4 {[%clk 0:03:04]}  e6 {[%clk 0:03:05]} 3. Nc3 {[%clk 0:03:04]}  Nf6 {[%clk 0:03:06]}
4. cxd5 {[%clk 0:03:05]}  exd5 {[%clk 0:03:08]} 5. Bg5 {[%clk 0:03:05]}  Be7 {[%clk 0:03:09]} 6. e3 {[%clk 0:03:06]}  h6 {[%clk 0:03:11]}
7. Bh4 {[%clk 0:03:06]}  Bg4 {[%clk 0:03:12]} 8. f3 {[%clk 0:03:06]}  Be6 {[%clk 0:03:13]} 9. Bd3 {[%clk 0:03:06]}  O-O {[%clk 0:03:13]}
10. Bf2 {[%clk 0:02:58]}  c5 {[%clk 0:03:12]} 11. Nge2 {[%clk 0:02:59]}  Nc6 {[%clk 0:03:13]} 12. O-O {[%clk 0:02:57]}  a6 {[%clk 0:03:13]}
13. Rc1 {[%clk 0:02:56]}  Rc8 {[%clk 0:03:13]} 14. Nf4 {[%clk 0:02:35]}  Qd7 {[%clk 0:02:55]} 15. dxc5 {[%clk 0:02:18]}  Bxc5 {[%clk 0:02:55]}
16. Na4 {[%clk 0:02:19]}  Ba7 {[%clk 0:02:52]} 17. Nc5 {[%clk 0:02:19]}  Bxc5 {[%clk 0:02:53]} 18. Rxc5 {[%clk 0:02:20]}  Qd6 {[%clk 0:02:46]}
19. Rc2 {[%clk 0:01:36]}  Bd7 {[%clk 0:02:40]} 20. Qd2 {[%clk 0:01:25]}  Rfe8 {[%clk 0:02:41]} 21. Rfc1 {[%clk 0:01:20]}  Ne5 {[%clk 0:02:00]}
22. Rxc8 {[%clk 0:01:17]}  Rxc8 {[%clk 0:02:01]} 23. Rxc8+ {[%clk 0:00:59]}  Bxc8 {[%clk 0:02:03]} 24. Be2 {[%clk 0:00:59]}  Qc6 {[%clk 0:01:48]}
25. b3 {[%clk 0:00:57]}  g5 {[%clk 0:01:02]} 26. Nd3 {[%clk 0:00:52]}  Ng6 {[%clk 0:01:00]} 27. Nb4 {[%clk 0:00:44]}  Qe6 {[%clk 0:01:01]}
28. Nc2 {[%clk 0:00:31]}  Bd7 {[%clk 0:00:57]} 29. Nd4 {[%clk 0:00:32]}  Qe7 {[%clk 0:00:57]} 30. Bg3 {[%clk 0:00:27]}  Qc5 {[%clk 0:00:44]}
31. Be1 {[%clk 0:00:14]}  Ne5 {[%clk 0:00:36]} 32. Qc3 {[%clk 0:00:10]}  Qd6 {[%clk 0:00:34]} 33. Bg3 {[%clk 0:00:09]}  Nh5 {[%clk 0:00:32]}
34. Bf2 {[%clk 0:00:04]}  Nf6 {[%clk 0:00:33]} 0-1

[Event "2026 Biel Blitz Open"]
[Site "Biel, CH"]
[Date "2026.07.19"]
[Round "7"]
[White "Cao, Qingfeng"]
[Black "Nguyen Thi Mai Hung"]
[Result "1-0"]
[Board "16"]
[TimeControl "180+2"]
[WhiteFideId "8627568"]
[BlackFideId "12401676"]
[WhiteElo "2264"]
[BlackElo "2039"]
[WhiteTitle "IM"]
[BlackTitle "WGM"]
[WhiteClock "0:00:15"]
[BlackClock "0:00:11"]
[Variant "Standard"]
[EndDate "2026.07.19"]
[EndTime "14:07:24"]

1. d4 {[%clk 0:03:02]}  d5 {[%clk 0:03:03]} 2. c4 {[%clk 0:03:04]}  c6 {[%clk 0:03:05]} 3. Nf3 {[%clk 0:03:04]}  Nf6 {[%clk 0:03:05]}
4. Qc2 {[%clk 0:03:05]}  g6 {[%clk 0:02:56]} 5. Bf4 {[%clk 0:03:01]}  Bg7 {[%clk 0:02:57]} 6. e3 {[%clk 0:03:02]}  Bf5 {[%clk 0:02:54]}
7. Qb3 {[%clk 0:03:01]}  Qb6 {[%clk 0:02:43]} 8. c5 {[%clk 0:03:00]}  Qxb3 {[%clk 0:02:43]} 9. axb3 {[%clk 0:03:01]}  O-O {[%clk 0:02:43]}
10. b4 {[%clk 0:03:01]}  a6 {[%clk 0:02:39]} 11. Nbd2 {[%clk 0:02:56]}  Nbd7 {[%clk 0:02:37]} 12. Nb3 {[%clk 0:02:54]}  Nh5 {[%clk 0:02:24]}
13. Bg5 {[%clk 0:02:13]}  f6 {[%clk 0:02:21]} 14. Bh4 {[%clk 0:02:12]}  g5 {[%clk 0:02:21]} 15. Bg3 {[%clk 0:02:13]}  Nxg3 {[%clk 0:02:20]}
16. hxg3 {[%clk 0:02:14]}  Rac8 {[%clk 0:02:14]} 17. Kd2 {[%clk 0:02:09]}  h6 {[%clk 0:02:02]} 18. Bd3 {[%clk 0:02:08]}  Be6 {[%clk 0:02:03]}
19. Ng1 {[%clk 0:01:48]}  Bf7 {[%clk 0:02:00]} 20. Ne2 {[%clk 0:01:46]}  e5 {[%clk 0:02:01]} 21. Bf5 {[%clk 0:01:46]}  Rc7 {[%clk 0:02:02]}
22. g4 {[%clk 0:01:45]}  Re8 {[%clk 0:02:00]} 23. Ng3 {[%clk 0:01:45]}  Nf8 {[%clk 0:01:44]} 24. Rh3 {[%clk 0:01:44]}  Ne6 {[%clk 0:01:27]}
25. Rah1 {[%clk 0:01:29]}  exd4 {[%clk 0:01:27]} 26. Nxd4 {[%clk 0:01:27]}  Nxd4 {[%clk 0:01:26]} 27. exd4 {[%clk 0:01:28]}  Rce7 {[%clk 0:01:26]}
28. Bd3 {[%clk 0:01:25]}  Be6 {[%clk 0:01:21]} 29. f3 {[%clk 0:01:23]}  Kf7 {[%clk 0:01:14]} 30. Nh5 {[%clk 0:01:19]}  Bf8 {[%clk 0:01:14]}
31. Re1 {[%clk 0:01:08]}  Bc8 {[%clk 0:01:15]} 32. Rxe7+ {[%clk 0:01:05]}  Rxe7 {[%clk 0:01:14]} 33. Rh1 {[%clk 0:01:04]}  Bd7 {[%clk 0:01:09]}
34. Ng3 {[%clk 0:01:03]}  Bg7 {[%clk 0:00:48]} 35. Bf5 {[%clk 0:01:03]}  Be8 {[%clk 0:00:50]} 36. Bc8 {[%clk 0:00:59]}  Rc7 {[%clk 0:00:51]}
37. Bf5 {[%clk 0:00:59]}  Re7 {[%clk 0:00:52]} 38. Re1 {[%clk 0:00:56]}  Rxe1 {[%clk 0:00:45]} 39. Kxe1 {[%clk 0:00:57]}  Ke7 {[%clk 0:00:36]}
40. Bc8 {[%clk 0:00:57]}  Kd8 {[%clk 0:00:37]} 41. Bxb7 {[%clk 0:00:57]}  Kc7 {[%clk 0:00:38]} 42. Bxa6 {[%clk 0:00:57]}  Bd7 {[%clk 0:00:38]}
43. Bd3 {[%clk 0:00:56]}  f5 {[%clk 0:00:37]} 44. Bxf5 {[%clk 0:00:40]}  Bxd4 {[%clk 0:00:37]} 45. Bxd7 {[%clk 0:00:39]}  Kxd7 {[%clk 0:00:38]}
46. Kd2 {[%clk 0:00:35]}  Bxb2 {[%clk 0:00:39]} 47. Nf5 {[%clk 0:00:34]}  Ke6 {[%clk 0:00:31]} 48. Kd3 {[%clk 0:00:34]}  h5 {[%clk 0:00:28]}
49. Nh6 {[%clk 0:00:05]}  h4 {[%clk 0:00:27]} 50. Nf5 {[%clk 0:00:06]}  Be5 {[%clk 0:00:17]} 51. Ne3 {[%clk 0:00:07]}  Ba1 {[%clk 0:00:09]}
52. Nd1 {[%clk 0:00:07]}  Ke5 {[%clk 0:00:09]} 53. Ke3 {[%clk 0:00:03]}  Bd4+ {[%clk 0:00:08]} 54. Ke2 {[%clk 0:00:04]}  Kf4 {[%clk 0:00:09]}
55. Kf1 {[%clk 0:00:03]}  Kg3 {[%clk 0:00:09]} 56. b5 {[%clk 0:00:04]}  cxb5 {[%clk 0:00:08]} 57. c6 {[%clk 0:00:06]}  Bb6 {[%clk 0:00:08]}
58. Nc3 {[%clk 0:00:07]}  d4 {[%clk 0:00:05]} 59. Nxb5 {[%clk 0:00:08]}  d3 {[%clk 0:00:06]} 60. Nc3 {[%clk 0:00:08]}  Kf4 {[%clk 0:00:04]}
61. Nd5+ {[%clk 0:00:09]}  Ke5 {[%clk 0:00:04]} 62. Nxb6 {[%clk 0:00:10]}  Kd6 {[%clk 0:00:05]} 63. Nc4+ {[%clk 0:00:10]}  Kxc6 {[%clk 0:00:06]}
64. Ne5+ {[%clk 0:00:12]}  Kd5 {[%clk 0:00:08]} 65. Nxd3 {[%clk 0:00:13]}  Kd4 {[%clk 0:00:09]} 66. Nf2 {[%clk 0:00:14]}  Ke3 {[%clk 0:00:11]}
67. Nh3 {[%clk 0:00:15]} 1-0

[Event "2026 Biel Blitz Open"]
[Site "Biel, CH"]
[Date "2026.07.19"]
[Round "7"]
[White "Rappazzo, Johannes"]
[Black "Gluckman, David"]
[Result "1-0"]
[Board "17"]
[TimeControl "180+2"]
[WhiteFideId "1340069"]
[BlackFideId "14300010"]
[WhiteElo "2032"]
[BlackElo "2240"]
[WhiteTitle "FM"]
[BlackTitle "IM"]
[WhiteClock "0:00:37"]
[BlackClock "0:01:57"]
[Variant "Standard"]
[EndDate "2026.07.19"]
[EndTime "13:54:56"]

1. e4 {[%clk 0:03:03]}  e6 {[%clk 0:03:02]} 2. d4 {[%clk 0:03:04]}  d5 {[%clk 0:03:03]} 3. Nc3 {[%clk 0:03:06]}  Nf6 {[%clk 0:03:04]}
4. Bg5 {[%clk 0:03:07]}  dxe4 {[%clk 0:03:00]} 5. Nxe4 {[%clk 0:03:08]}  Be7 {[%clk 0:03:01]} 6. Bxf6 {[%clk 0:03:08]}  gxf6 {[%clk 0:03:02]}
7. Nf3 {[%clk 0:03:09]}  a6 {[%clk 0:02:57]} 8. Qe2 {[%clk 0:03:09]}  b5 {[%clk 0:02:42]} 9. O-O-O {[%clk 0:03:09]}  Bb7 {[%clk 0:02:44]}
10. Kb1 {[%clk 0:03:02]}  O-O {[%clk 0:02:37]} 11. Qe3 {[%clk 0:02:58]}  Nd7 {[%clk 0:02:21]} 12. Bd3 {[%clk 0:02:47]}  f5 {[%clk 0:02:17]}
13. Nc5 {[%clk 0:02:44]}  Nxc5 {[%clk 0:01:47]} 14. dxc5 {[%clk 0:02:45]}  Bxf3 {[%clk 0:01:34]} 15. Qxf3 {[%clk 0:02:39]}  Qe8 {[%clk 0:01:22]}
16. g4 {[%clk 0:02:21]}  fxg4 {[%clk 0:01:19]} 17. Qxg4+ {[%clk 0:02:19]}  Kh8 {[%clk 0:01:21]} 18. Bxh7 {[%clk 0:02:00]}  f5 {[%clk 0:00:39]}
19. Qh3 {[%clk 0:02:01]}  Kg7 {[%clk 0:00:35]} 20. Rhg1+ {[%clk 0:02:02]}  Kf6 {[%clk 0:00:36]} 21. Qh6+ {[%clk 0:02:00]}  Ke5 {[%clk 0:00:37]}
22. Rge1# {[%clk 0:01:57]} 1-0

[Event "2026 Biel Blitz Open"]
[Site "Biel, CH"]
[Date "2026.07.19"]
[Round "7"]
[White "Liu, Bei"]
[Black "El-Mais, Ibaa"]
[Result "0-1"]
[Board "18"]
[TimeControl "180+2"]
[WhiteFideId "8603596"]
[BlackFideId "1312715"]
[WhiteElo "2170"]
[BlackElo "2012"]
[WhiteClock "0:00:07"]
[BlackClock "0:00:05"]
[Variant "Standard"]
[EndDate "2026.07.19"]
[EndTime "14:06:10"]

1. e4 {[%clk 0:03:02]}  e5 {[%clk 0:03:00]} 2. Nf3 {[%clk 0:03:02]}  Nc6 {[%clk 0:03:01]} 3. Bb5 {[%clk 0:03:02]}  a6 {[%clk 0:03:03]}
4. Ba4 {[%clk 0:03:03]}  Nge7 {[%clk 0:03:03]} 5. c3 {[%clk 0:03:01]}  d6 {[%clk 0:03:03]} 6. d4 {[%clk 0:03:00]}  Bd7 {[%clk 0:02:59]}
7. O-O {[%clk 0:03:00]}  Ng6 {[%clk 0:02:41]} 8. Re1 {[%clk 0:02:46]}  Be7 {[%clk 0:02:33]} 9. Nbd2 {[%clk 0:02:46]}  O-O {[%clk 0:02:30]}
10. Nf1 {[%clk 0:02:47]}  Bg4 {[%clk 0:01:25]} 11. d5 {[%clk 0:02:42]}  Nb8 {[%clk 0:01:21]} 12. h3 {[%clk 0:02:39]}  Bc8 {[%clk 0:01:11]}
13. Ng3 {[%clk 0:02:33]}  Nh4 {[%clk 0:01:08]} 14. Bc2 {[%clk 0:02:30]}  g6 {[%clk 0:01:07]} 15. Bh6 {[%clk 0:02:26]}  Re8 {[%clk 0:01:08]}
16. c4 {[%clk 0:02:26]}  Nd7 {[%clk 0:00:45]} 17. b4 {[%clk 0:02:27]}  Bf8 {[%clk 0:00:36]} 18. Be3 {[%clk 0:02:16]}  Nxf3+ {[%clk 0:00:23]}
19. Qxf3 {[%clk 0:02:17]}  Qh4 {[%clk 0:00:24]} 20. Ba4 {[%clk 0:01:55]}  Bh6 {[%clk 0:00:16]} 21. c5 {[%clk 0:01:46]}  Bxe3 {[%clk 0:00:13]}
22. Qxe3 {[%clk 0:01:40]}  Rf8 {[%clk 0:00:13]} 23. cxd6 {[%clk 0:01:37]}  cxd6 {[%clk 0:00:14]} 24. Rac1 {[%clk 0:01:36]}  f5 {[%clk 0:00:12]}
25. exf5 {[%clk 0:00:51]}  gxf5 {[%clk 0:00:13]} 26. Nf1 {[%clk 0:00:47]}  f4 {[%clk 0:00:15]} 27. Qf3 {[%clk 0:00:42]}  Nf6 {[%clk 0:00:16]}
28. Bc2 {[%clk 0:00:26]}  Kh8 {[%clk 0:00:17]} 29. Bd3 {[%clk 0:00:23]}  Rg8 {[%clk 0:00:18]} 30. Kh1 {[%clk 0:00:21]}  Rg7 {[%clk 0:00:19]}
31. Nh2 {[%clk 0:00:16]}  Bd7 {[%clk 0:00:20]} 32. Rc2 {[%clk 0:00:11]}  Rag8 {[%clk 0:00:21]} 33. Rg1 {[%clk 0:00:10]}  Rg5 {[%clk 0:00:17]}
34. Rc7 {[%clk 0:00:10]}  R5g7 {[%clk 0:00:08]} 35. Rgc1 {[%clk 0:00:10]}  Rxg2 {[%clk 0:00:05]} 36. Rxd7 {[%clk 0:00:08]}  Rxh2+ {[%clk 0:00:05]}
37. Kxh2 {[%clk 0:00:08]}  Nxd7 {[%clk 0:00:04]} 38. Rc7 {[%clk 0:00:09]}  Nf6 {[%clk 0:00:04]} 39. Bf5 {[%clk 0:00:06]}  Rg5 {[%clk 0:00:04]}
40. Be6 {[%clk 0:00:06]}  e4 {[%clk 0:00:04]} 41. Rc8+ {[%clk 0:00:06]}  Kg7 {[%clk 0:00:05]} 42. Qc3 {[%clk 0:00:07]}  Qxf2+ {[%clk 0:00:05]} 0-1

[Event "2026 Biel Blitz Open"]
[Site "Biel, CH"]
[Date "2026.07.19"]
[Round "7"]
[White "Garcia, Miguel"]
[Black "Fernandes Barbosa Dos Santos, Gabriel"]
[Result "0-1"]
[Board "19"]
[TimeControl "180+2"]
[WhiteFideId "1317431"]
[BlackFideId "1354388"]
[WhiteElo "1938"]
[BlackElo "2167"]
[BlackTitle "CM"]
[WhiteClock "0:00:07"]
[BlackClock "0:00:36"]
[Variant "Standard"]
[EndDate "2026.07.19"]
[EndTime "13:57:51"]

1. Nf3 {[%clk 0:03:03]}  d5 {[%clk 0:03:03]} 2. d4 {[%clk 0:03:03]}  Nf6 {[%clk 0:03:04]} 3. Bf4 {[%clk 0:03:04]}  e6 {[%clk 0:03:04]}
4. e3 {[%clk 0:03:05]}  c5 {[%clk 0:03:04]} 5. Nbd2 {[%clk 0:03:05]}  Nc6 {[%clk 0:03:05]} 6. c3 {[%clk 0:03:05]}  Bd6 {[%clk 0:03:05]}
7. Bg3 {[%clk 0:03:05]}  O-O {[%clk 0:03:04]} 8. Bd3 {[%clk 0:03:06]}  b6 {[%clk 0:03:04]} 9. Ne5 {[%clk 0:03:06]}  Qc7 {[%clk 0:03:00]}
10. Ndf3 {[%clk 0:02:52]}  Bb7 {[%clk 0:02:56]} 11. a3 {[%clk 0:02:50]}  Ne7 {[%clk 0:02:35]} 12. Qc2 {[%clk 0:02:29]}  Ne4 {[%clk 0:02:36]}
13. O-O {[%clk 0:02:16]}  f6 {[%clk 0:02:25]} 14. Ng4 {[%clk 0:02:11]}  h5 {[%clk 0:02:23]} 15. Nxf6+ {[%clk 0:01:48]}  Rxf6 {[%clk 0:02:09]}
16. dxc5 {[%clk 0:01:34]}  Bxg3 {[%clk 0:01:59]} 17. hxg3 {[%clk 0:01:34]}  Nxc5 {[%clk 0:01:47]} 18. Be2 {[%clk 0:01:28]}  e5 {[%clk 0:01:46]}
19. Rad1 {[%clk 0:01:26]}  Raf8 {[%clk 0:01:43]} 20. c4 {[%clk 0:01:23]}  Ne6 {[%clk 0:01:24]} 21. Rc1 {[%clk 0:01:18]}  d4 {[%clk 0:01:21]}
22. e4 {[%clk 0:01:06]}  Nc5 {[%clk 0:01:15]} 23. Nd2 {[%clk 0:00:57]}  Qd6 {[%clk 0:01:05]} 24. b4 {[%clk 0:00:48]}  Ne6 {[%clk 0:01:01]}
25. c5 {[%clk 0:00:43]}  bxc5 {[%clk 0:00:58]} 26. bxc5 {[%clk 0:00:44]}  Qc6 {[%clk 0:00:51]} 27. Bf3 {[%clk 0:00:40]}  Ng5 {[%clk 0:00:47]}
28. Qb3+ {[%clk 0:00:37]}  Kh8 {[%clk 0:00:43]} 29. Rb1 {[%clk 0:00:32]}  Nxf3+ {[%clk 0:00:40]} 30. gxf3 {[%clk 0:00:32]}  Ba8 {[%clk 0:00:41]}
31. Rfc1 {[%clk 0:00:28]}  Rxf3 {[%clk 0:00:37]} 32. Nxf3 {[%clk 0:00:28]}  Qxe4 {[%clk 0:00:37]} 33. Qc2 {[%clk 0:00:05]}  Qxf3 {[%clk 0:00:36]}
34. Kf1 {[%clk 0:00:06]}  Qg2+ {[%clk 0:00:36]} 35. Ke1 {[%clk 0:00:06]}  Qg1+ {[%clk 0:00:37]} 36. Kd2 {[%clk 0:00:07]}  Rxf2+ {[%clk 0:00:36]} 0-1